bitfinex/quotes_ETHUSD_20220226
["timestamp","ask_amount","ask_price","bid_price","bid_amount"]
[1645919454741,0.5002,2777.0,2775.7,0.6641]
[1645919454983,0.4228677,2776.9,2775.7,0.9641]
[1645919455586,0.4228677,2776.9,2775.7,13.23096]
[1645919455790,0.4228677,2776.9,2775.8,1.3561]
[1645919455990,0.4228677,2776.8,2775.9,0.6639]
[1645919456192,1.4939,2777.3,2775.9,0.9639]
[1645919456389,0.42310167,2777.2,2776.2,1.0]
[1645919456590,0.42310167,2777.2,2776.2,1.52]
[1645919456789,0.42310167,2777.1,2776.2,1.52]
[1645919456992,0.42310167,2777.4,2776.2,1.52]
[1645919457389,0.00253632,2776.8,2776.2,1.52]
[1645919458388,0.42310167,2777.2,2776.2,1.52]
[1645919458675,0.00392995,2777.5,2776.5,1.0]
[1645919458676,0.00532709,2776.6,2776.5,1.0]
[1645919458878,0.00532709,2776.6,2776.5,16.03]
[1645919458879,2.709e-05,2776.6,2776.5,16.03]
[1645919459076,2.709e-05,2776.6,2776.5,17.6861]
[1645919459276,2.709e-05,2776.6,2776.5,26.3894]
[1645919459478,0.67979579,2777.7,2776.5,26.3894]
[1645919459479,0.00392995,2777.6,2776.6,0.3561]
[1645919459674,0.42394413,2777.7,2776.8,0.3561]
[1645919459874,0.42394413,2777.7,2776.9,22.8762]
[1645919459875,0.42394413,2777.6,2776.9,22.8762]
[1645919460085,0.42394413,2777.6,2777.1,1.0]
[1645919460276,0.67979579,2777.5,2777.1,1.0]
[1645919460475,0.42394413,2777.4,2777.1,1.0]
[1645919460677,0.42394413,2777.4,2776.9,7.7023]
[1645919461077,0.42394413,2777.3,2776.9,7.7023]
[1645919461276,0.42394413,2777.2,2776.9,7.7023]
[1645919461480,0.42394413,2777.1,2776.9,7.7023]
[1645919461676,0.42394413,2777.0,2776.9,7.7023]
[1645919461875,0.42394413,2777.4,2776.9,7.7023]
[1645919462076,0.42394413,2777.3,2776.9,7.7023]
[1645919462277,0.00253233,2777.1,2776.9,7.7023]
[1645919462889,0.42647646,2777.1,2776.9,7.7023]
[1645919463090,0.42394413,2777.0,2776.9,7.7023]
[1645919463491,0.67979579,2777.6,2776.9,7.7023]
[1645919463492,0.00532658,2777.1,2776.9,7.7023]
[1645919463690,0.42394413,2777.0,2776.9,7.7023]
[1645919464392,0.68372574,2777.7,2776.9,8.7023]
[1645919464591,1.5978,2778.2,2777.0,0.52]
[1645919464592,0.00532663,2777.1,2777.0,0.52]
[1645919465592,0.00392995,2777.8,2777.0,8.222]
[1645919465793,0.00532653,2777.2,2777.0,9.5781]
[1645919466642,0.00392995,2777.8,2777.0,9.5781]
[1645919466841,0.00532648,2777.2,2777.0,9.5781]
[1645919467251,0.00532648,2777.2,2777.1,14.51]
[1645919467447,0.00532648,2777.2,2777.1,24.3879]
[1645919467849,0.04092649,2778.0,2777.1,29.3879]
[1645919468050,0.04092649,2778.0,2777.4,11.3661]
[1645919468246,0.04035806,2777.9,2777.8,11.01]
[1645919468445,0.04035806,2777.9,2777.8,11.7199]
[1645919468749,0.04035806,2777.9,2777.8,13.376]
[1645919470303,0.04035806,2777.9,2777.8,13.0199]
[1645919470705,0.04035806,2777.9,2777.8,13.376]
[1645919470904,0.04035806,2777.9,2777.8,9.5199]
[1645919471105,0.04035806,2777.9,2777.8,9.2199]
[1645919471310,0.04035806,2777.9,2777.8,8.2199]
[1645919471711,0.46071108,2777.9,2777.8,7.6999]
[1645919474454,0.46071108,2777.9,2777.8,6.07660579]
[1645919475455,0.04035806,2777.9,2777.8,6.07660579]
[1645919478898,0.04035806,2777.9,2777.8,6.59660579]
[1645919479101,0.04035806,2777.9,2777.8,10.09660579]
[1645919479297,0.04035806,2777.9,2777.8,12.09660579]
[1645919480700,0.04035806,2777.9,2777.8,23.10660579]
[1645919480906,0.02028646,2778.5,2777.9,15.8661]
[1645919481132,0.00392995,2778.8,2778.1,11.3661]
[1645919481432,0.39879949,2778.8,2778.2,5.02]
[1645919481633,0.00392995,2778.8,2778.2,5.02]
[1645919481838,7.36,2778.9,2778.2,6.02]
[1645919482033,7.36,2778.9,2778.3,11.3661]
[1645919482239,7.36,2778.9,2778.3,0.8761]
[1645919482634,0.00532865,2778.7,2778.3,0.52]
[1645919483534,7.36,2778.9,2778.3,0.52]
[1645919483738,0.00532871,2778.6,2778.3,0.52]
[1645919484745,0.00392995,2778.8,2778.3,0.52]
[1645919484997,0.00532876,2778.6,2778.3,0.52]
[1645919485592,0.00532876,2778.6,2778.4,11.01]
[1645919485795,0.00532876,2778.6,2778.5,11.53]
[1645919485997,0.00392995,2779.4,2778.5,15.3861]
[1645919486199,0.00532871,2778.6,2778.5,16.03]
[1645919486394,0.00532871,2778.6,2778.5,25.8088663]
[1645919486595,0.00532871,2778.6,2778.5,23.3088663]
[1645919486794,0.00532871,2778.6,2778.5,23.6649663]
[1645919487193,0.00392995,2779.4,2778.6,0.3561]
[1645919487399,0.02131142,2779.1,2778.9,11.3661]
[1645919487694,0.02131142,2779.1,2779.0,0.52]
[1645919488294,0.00392995,2779.4,2779.0,0.52]
[1645919488496,0.40701707,2779.4,2779.0,0.52]
[1645919488745,0.00532815,2779.2,2779.0,0.52]
[1645919489146,0.00532815,2779.2,2778.5,21.6314]
[1645919489147,0.76313822,2779.1,2778.5,9.3214]
[1645919489346,0.00532815,2779.2,2778.5,9.3214]
[1645919489347,0.76313822,2779.0,2778.5,9.3214]
[1645919489543,0.40703822,2778.9,2778.5,9.3214]
[1645919489948,0.41236662,2778.9,2778.5,9.3214]
[1645919490143,0.20703822,2778.8,2778.5,9.3214]
[1645919490946,0.66002995,2779.1,2778.5,9.3214]
[1645919490947,0.3,2779.0,2778.5,9.3214]
[1645919491145,0.00490445,2778.8,2778.5,9.3214]
[1645919491753,0.5,2778.7,2778.5,9.3214]
[1645919491947,0.3561,2778.6,2778.5,9.3214]
[1645919493789,3.8561,2778.6,2778.5,9.3214]
[1645919494188,4.8561,2778.6,2778.5,9.3214]
[1645919494391,4.8561,2778.6,2778.5,7.69831218]
[1645919495899,4.8561,2778.6,2778.5,1.218e-05]
[1645919496157,4.8561,2778.6,2777.6,0.00501134]
[1645919496158,0.3561,2778.3,2777.6,0.00501134]
[1645919496342,0.3561,2778.1,2777.6,0.00501134]
[1645919496743,0.3561,2778.1,2776.8,5.3492]
[1645919496744,0.6561,2778.1,2776.8,5.3492]
[1645919496941,0.3561,2777.9,2776.8,5.3492]
[1645919497142,0.6561,2777.9,2777.6,0.00501071]
[1645919497342,0.3561,2777.9,2777.6,0.00501071]
[1645919497845,0.0050098,2778.1,2777.6,0.00501071]
[1645919498041,0.30394817,2778.2,2776.9,1.0]
[1645919498042,3.80394817,2778.2,2776.9,1.0]
[1645919498242,0.36110593,2778.1,2777.6,0.00500688]
[1645919498643,0.66110593,2778.1,2777.6,0.00500688]
[1645919499043,0.3561,2777.9,2777.6,0.00500688]
[1645919499245,0.3561,2777.7,2776.5,4.1927]
[1645919499445,3.8561,2777.6,2776.5,4.0488]
[1645919499643,0.3561,2777.6,2776.5,4.0488]
[1645919500486,0.3561,2777.7,2776.5,4.0488]
[1645919500683,0.3561,2777.7,2776.9,0.00500751]
[1645919501688,0.3561,2777.7,2776.6,0.1439]
[1645919501888,0.3561,2777.7,2777.2,0.00501132]
[1645919502789,0.3561,2777.7,2776.6,0.1439]
[1645919502994,0.3561,2777.7,2777.3,0.00501118]
[1645919504046,0.3561,2777.7,2776.6,0.1439]
[1645919504248,0.3561,2777.6,2777.4,0.00501114]
[1645919505250,0.67567307,2777.8,2776.6,0.1439]
[1645919505449,0.00394817,2777.9,2777.4,0.00250227]
[1645919505650,0.67567307,2778.0,2777.4,0.00250227]
[1645919505947,0.67567307,2777.9,2777.4,0.00250227]
[1645919506348,0.67567307,2777.9,2776.6,0.6639]
[1645919506547,0.00394817,2777.8,2776.6,0.6639]
[1645919506747,0.00394817,2777.8,2777.5,0.00250214]
[1645919506946,0.67567307,2777.9,2777.5,0.00250214]
[1645919507681,0.67567307,2777.9,2776.6,0.1439]
[1645919507884,3.50394817,2777.8,2777.6,0.00250209]
[1645919508084,0.67567307,2777.9,2777.6,0.00250209]
[1645919508390,0.3561,2777.7,2777.6,0.00250209]
[1645919508587,3.8561,2777.7,2777.6,0.00250209]
[1645919508789,3.8561,2777.7,2776.6,0.1439]
[1645919508988,5.83177307,2777.7,2776.5,3.2988]
[1645919509191,5.83177307,2777.7,2776.5,3.0488]
[1645919509192,0.3561,2777.3,2776.5,3.0488]
[1645919509388,3.8561,2777.2,2776.5,1.0]
[1645919509793,5.1561,2777.2,2776.5,1.0]
[1645919509992,5.83177307,2777.2,2776.5,1.0]
[1645919510190,5.83177307,2777.2,2775.9,4.89554353]
[1645919510191,0.3561,2776.9,2775.9,4.89554353]
[1645919510391,0.3561,2776.7,2776.0,1.13425261]
[1645919510593,0.37658156,2776.6,2776.0,1.13425261]
[1645919511341,0.73268156,2776.6,2776.0,1.13425261]
[1645919511541,0.37658156,2776.5,2776.2,0.0051595]
[1645919511740,0.37658156,2776.5,2776.3,1.13425261]
[1645919511940,0.37658156,2776.5,2776.2,0.0051595]
[1645919512341,0.37658156,2776.5,2776.3,1.13344064]
[1645919512547,0.37658156,2776.5,2775.9,0.55334353]
[1645919512548,0.73268156,2776.5,2775.9,0.55334353]
[1645919512746,0.3561,2776.4,2776.2,0.00515945]
[1645919513750,0.3561,2776.5,2775.9,0.55334353]
[1645919513950,4.40104,2776.6,2776.2,0.00467188]
[1645919514148,4.54485,2777.0,2776.2,0.00467188]
[1645919514349,0.37669597,2776.9,2776.2,0.00467188]
[1645919514981,0.3561,2776.8,2775.9,0.55334353]
[1645919515181,0.37669597,2776.7,2776.4,0.00467165]
[1645919515582,0.90098,2776.7,2776.4,0.00467165]
[1645919515982,0.90098,2776.7,2775.9,0.55334353]
[1645919516187,0.90098,2776.7,2776.0,1.13185902]
[1645919516383,0.90098,2776.7,2776.4,0.00467165]
[1645919516583,1.85703,2777.0,2776.4,0.00467165]
[1645919516782,0.37644669,2776.9,2776.4,0.00467165]
[1645919517185,0.37644669,2776.9,2775.9,0.55334353]
[1645919517387,3.5,2776.8,2776.0,1.13161875]
[1645919517584,0.37644669,2776.7,2776.5,0.00469355]
[1645919517785,0.37644669,2776.7,2776.5,0.00234602]
[1645919517985,6.25793,2777.0,2776.5,0.00234602]
[1645919518185,0.37628307,2776.9,2776.5,0.00234602]
[1645919518387,0.37628307,2776.9,2776.0,1.1315025]
[1645919520546,3.5,2776.8,2776.0,1.1315025]
[1645919520746,0.37628307,2776.7,2775.9,0.55334353]
[1645919521146,0.37628307,2776.7,2776.3,0.00282647]
[1645919522046,0.37628307,2776.7,2775.9,0.55334353]
[1645919522247,0.37628307,2776.7,2776.4,0.00532837]
[1645919523287,0.37628307,2776.7,2775.9,0.55334353]
[1645919523587,0.37628307,2776.7,2776.4,0.00532841]
[1645919523995,0.3561,2776.9,2776.4,0.00532841]
[1645919524191,0.37597392,2776.8,2776.4,0.00532841]
[1645919524493,0.37597392,2776.8,2775.9,0.55334353]
[1645919524696,0.37597392,2776.8,2776.4,0.0053285]
[1645919525699,0.37597392,2776.8,2775.9,0.55334353]
[1645919525901,3.87597392,2776.8,2776.4,0.00532846]
[1645919526154,0.3561,2776.9,2776.4,0.00532846]
[1645919526358,4.23210385,2776.8,2776.4,0.00532846]
[1645919526559,0.37600385,2776.7,2776.4,0.00532846]
[1645919526964,0.37600385,2776.7,2775.9,0.55334353]
[1645919527162,0.37600385,2776.7,2776.4,0.00532846]
[1645919528162,0.37600385,2776.7,2775.9,0.55334353]
[1645919528368,0.37600385,2776.7,2776.4,0.00532841]
[1645919528569,0.3561,2776.8,2776.4,0.00532841]
[1645919529470,5.90183,2777.0,2776.4,0.00532846]
[1645919529471,1.857,2777.0,2776.4,0.00532846]
[1645919529666,0.37598368,2776.9,2776.4,0.00532846]
[1645919530485,0.37598368,2776.9,2775.9,0.55334353]
[1645919530689,0.37598368,2776.9,2776.4,0.0053285]
[1645919531696,0.37598368,2776.9,2775.9,12.21944353]
[1645919531894,1.2404,2777.3,2776.1,11.3661]
[1645919532094,0.38191675,2777.2,2776.4,0.0053285]
[1645919532291,0.38191675,2777.1,2776.5,1.13062214]
[1645919532493,0.38191675,2777.7,2776.6,1.13062214]
[1645919532694,0.38191675,2777.7,2776.7,1.12641718]
[1645919532892,0.38191675,2777.7,2776.4,3.4978]
[1645919533093,0.38191675,2777.7,2776.5,1.12652602]
[1645919533294,0.68191675,2777.7,2776.5,1.12652602]
[1645919533495,0.38191675,2777.6,2776.5,1.12652602]
[1645919533749,1.35758982,2777.7,2776.5,1.12652602]
[1645919533956,0.38191675,2777.6,2776.6,1.0]
[1645919534353,0.38191675,2777.5,2776.7,1.12652602]
[1645919534548,0.38191675,2777.4,2776.7,1.12652602]
[1645919534750,0.38191675,2777.3,2776.7,1.12652602]
[1645919534947,0.38191675,2777.2,2776.7,1.12652602]
[1645919535148,0.38191675,2777.1,2776.7,1.12652602]
[1645919535348,3.5,2777.7,2776.7,1.12652602]
[1645919535547,0.38270124,2777.6,2776.7,1.12652602]
[1645919535751,1.05837431,2777.7,2776.7,1.12652602]
[1645919536551,0.38270124,2777.6,2776.7,1.12652602]
[1645919536755,0.38270124,2777.5,2776.7,1.12652602]
[1645919536957,0.38270124,2777.4,2776.7,1.12652602]
[1645919537159,0.38270124,2777.3,2776.7,1.12652602]
[1645919537400,0.38270124,2777.2,2776.7,1.12652602]
[1645919537599,0.38270124,2777.1,2776.7,1.12652602]
[1645919537798,6.01107307,2777.8,2776.7,1.12652602]
[1645919537799,0.38283405,2777.0,2776.7,1.12652602]
[1645919538003,2.16029917,2777.8,2777.0,0.57140914]
[1645919538200,0.38283354,2777.7,2777.1,1.12652602]
[1645919540206,0.38283354,2777.7,2777.1,1.12494171]
[1645919540806,1.05850661,2777.7,2777.1,1.12494171]
[1645919542243,1.95917661,2777.7,2777.1,1.12494171]
[1645919542438,2.85986661,2777.7,2777.1,1.12494171]
[1645919542638,2.47703307,2777.7,2777.1,1.12494171]
[1645919544447,0.67567307,2777.6,2777.1,1.12494171]
[1645919544888,0.67567307,2777.6,2777.0,0.57140914]
[1645919545286,0.67567307,2777.5,2777.0,0.57140914]
[1645919545888,0.3561,2777.4,2777.0,0.57140914]
[1645919546092,1.93254307,2777.4,2777.0,0.57140914]
[1645919546288,5.43254307,2777.4,2777.0,0.57140914]
[1645919546496,0.67567307,2777.2,2777.0,0.57140914]
[1645919546694,4.53177307,2777.1,2777.0,0.57140914]
[1645919547092,5.83581458,2777.1,2777.0,0.57140914]
[1645919547292,5.1561,2777.1,2777.0,0.57140914]
[1645919547497,5.14820196,2777.1,2777.0,0.57140914]
[1645919549958,5.14820196,2777.1,2775.4,1.26606974]
[1645919549959,21.85293172,2777.1,2776.4,0.00532886]
[1645919550161,1.03577636,2776.5,2776.4,0.00532886]
[1645919550356,4.3761,2776.5,2776.4,0.00532886]
[1645919550755,16.53,2776.5,2776.4,2.886e-05]
[1645919551057,17.43623515,2776.5,2775.1,0.5]
[1645919551355,0.3561,2776.1,2775.1,0.5]
[1645919551554,0.3561,2775.9,2775.1,0.5]
[1645919551755,0.6561,2775.9,2775.1,0.5]
[1645919554895,0.6561,2775.9,2775.4,0.00532938]
[1645919555303,0.3,2775.9,2775.4,0.00532938]
[1645919555601,1.2247,2776.4,2775.4,0.00532938]
[1645919555796,3.5,2776.3,2775.4,1.0]
[1645919555999,3.5,2776.3,2775.5,0.00532597]
[1645919556000,0.67938147,2776.1,2775.5,0.00532597]
[1645919556254,1.58079387,2775.9,2775.5,0.00532597]
[1645919556454,6.05548147,2775.8,2775.5,0.00532597]
[1645919556853,0.1441,2775.7,2775.5,0.00532597]
[1645919557055,0.1441,2775.7,2775.1,0.5]
[1645919557056,1.0202,2775.7,2775.1,0.5]
[1645919557255,1.0202,2775.7,2775.5,0.00283784]
[1645919557653,0.5002,2775.7,2775.5,0.00283784]
[1645919558055,0.00149041,2775.2,2775.1,0.45283784]
[1645919559355,0.00149041,2775.2,2774.4,2.4344]
[1645919559560,0.00149041,2775.2,2775.0,0.00534602]
[1645919560197,0.00149041,2775.2,2775.1,1.11260047]
[1645919560999,0.00149041,2775.2,2775.0,0.00534602]
[1645919561199,0.00149041,2775.2,2775.1,1.11260047]
[1645919561606,0.00149041,2775.2,2775.0,0.00534602]
[1645919561807,0.00149041,2775.2,2774.4,3.4344]
[1645919562008,0.00149041,2775.2,2775.0,0.00534602]
[1645919563110,0.00149041,2775.2,2774.4,2.4344]
[1645919563308,0.00149041,2775.2,2775.0,0.00534608]
[1645919564144,0.00149041,2775.2,2774.6,0.3561]
[1645919564344,0.00149041,2775.2,2774.7,1.11122819]
[1645919564545,0.00149041,2775.2,2775.0,0.00534608]
[1645919565347,0.00149041,2775.2,2774.6,0.3561]
[1645919565549,0.00149041,2775.2,2774.8,0.3561]
[1645919565754,0.00149041,2775.2,2775.0,0.00534608]
[1645919566049,0.00149041,2775.2,2775.1,1.11098142]
[1645919567897,0.00149041,2775.2,2774.7,1.0]
[1645919567898,0.00149041,2775.2,2774.9,1.46708142]
[1645919568099,0.00149041,2775.2,2775.0,1.47242744]
[1645919568300,0.00149041,2775.2,2775.1,1.11098142]
[1645919568898,0.00149041,2775.2,2774.8,0.3603]
[1645919569098,0.00149041,2775.2,2774.9,1.47141101]
[1645919569299,0.00149041,2775.2,2775.0,1.11645703]
[1645919569499,0.00149041,2775.2,2775.1,1.11111101]
[1645919569900,0.00149041,2775.2,2775.1,1.11104188]
[1645919570101,0.00149041,2775.2,2774.6,1.222]
[1645919570301,0.00149041,2775.2,2774.7,1.11111315]
[1645919570501,0.00149041,2775.2,2775.0,0.00534602]
[1645919571456,0.00149041,2775.2,2774.5,0.3603]
[1645919571654,0.00149041,2775.2,2775.0,0.00534608]
[1645919572659,0.00149041,2775.2,2774.5,0.3603]
[1645919572856,0.00149041,2775.2,2775.0,0.00534608]
[1645919573057,0.00149041,2775.2,2775.1,1.11075807]
[1645919574062,0.00149041,2775.2,2775.0,0.00534602]
[1645919574261,0.00149041,2775.2,2775.1,1.11075807]
[1645919574907,0.00149041,2775.2,2775.1,1.56355807]
[1645919575905,0.00149041,2775.2,2775.1,1.92385807]
[1645919576508,0.00149041,2775.2,2775.1,1.56355807]
[1645919576907,0.00149041,2775.2,2775.1,2.56355807]
[1645919577909,0.00149041,2775.2,2775.1,1.56355807]
[1645919578307,0.00149041,2775.2,2775.1,1.92385807]
[1645919578508,0.00149041,2775.2,2775.1,2.92385807]
[1645919579357,0.00149041,2775.2,2775.1,2.56355807]
[1645919580960,0.00149041,2775.2,2775.1,1.11075807]
[1645919581157,0.00149041,2775.2,2775.0,1.11610409]
[1645919581365,0.00149041,2775.2,2775.1,1.11075807]
[1645919582400,0.00149041,2775.2,2775.0,1.11610409]
[1645919582797,0.00063995,2775.2,2775.0,1.11610409]
[1645919583399,0.00063995,2775.2,2775.0,1.11075807]
[1645919583601,0.00063995,2775.2,2775.0,1.11610415]
[1645919583806,0.00063995,2775.2,2775.0,0.00534608]
[1645919584008,0.00063995,2775.2,2775.1,1.11327623]
[1645919584905,0.00063995,2775.2,2775.0,1.11862225]
[1645919585107,0.00063995,2775.2,2775.1,1.11327623]
[1645919586559,0.00063995,2775.2,2775.1,2.11327623]
[1645919587356,0.00063995,2775.2,2775.1,14.18987623]
[1645919587558,0.00063995,2775.2,2775.1,16.37017623]
[1645919587955,0.00063995,2775.2,2775.1,23.75478854]
[1645919588156,0.00063995,2775.2,2775.1,26.66017675]
[1645919588356,0.00063995,2775.2,2775.1,26.83434392]
[1645919588556,0.00063995,2775.2,2775.1,26.1522707]
[1645919588959,0.00063995,2775.2,2775.1,25.97810353]
[1645919591205,1.07455804,2776.6,2775.3,0.3603]
[1645919591402,1.28790433,2776.9,2775.4,8.56706242]
[1645919591403,0.67938147,2776.7,2775.4,8.56706242]
[1645919591603,0.67938147,2776.7,2775.5,1.63327623]
[1645919591907,0.67938147,2776.7,2775.6,1.11327623]
[1645919592103,1.07455804,2776.7,2775.6,1.11327623]
[1645919592301,0.39517657,2776.6,2775.7,1.11327623]
[1645919592506,0.39517657,2776.5,2775.8,1.11327623]
[1645919592704,0.67938147,2776.7,2775.6,1.11327623]
[1645919592904,0.67938147,2776.7,2775.7,1.11327623]
[1645919593105,0.39517657,2776.6,2775.8,1.11327623]
[1645919593305,0.39517657,2776.6,2775.9,1.11327623]
[1645919593505,0.39517657,2776.6,2776.0,1.11327623]
[1645919593748,0.39517657,2776.6,2776.1,1.11327623]
[1645919593952,0.39517657,2776.6,2776.2,1.11327623]
[1645919594148,0.39517657,2776.6,2775.4,8.48378619]
[1645919594347,0.39517657,2776.6,2775.5,1.12061271]
[1645919595550,0.69517657,2776.6,2775.5,1.12061271]
[1645919595753,0.39517657,2776.5,2775.5,1.12061271]
[1645919595950,0.39517657,2776.5,2775.5,2.12061271]
[1645919596151,0.39517657,2776.5,2775.6,1.12061271]
[1645919596548,0.39517657,2776.5,2775.7,1.12061271]
[1645919596750,0.39517657,2776.5,2775.8,1.12061271]
[1645919596952,0.39517657,2776.5,2775.9,1.12061271]
[1645919597155,0.39517657,2776.5,2776.0,1.12061271]
[1645919597402,0.39517657,2776.5,2776.1,1.12061271]
[1645919597602,0.39517657,2776.5,2775.4,3.6414]
[1645919597802,0.39517657,2776.5,2775.5,1.12073146]
[1645919602145,0.3,2776.6,2775.5,1.12073146]
[1645919602354,1.383,2776.8,2775.6,14.8703]
[1645919602550,0.90623515,2776.9,2775.6,16.3903]
[1645919602747,5.72225053,2777.2,2775.8,1.0]
[1645919602748,0.90623515,2777.0,2775.8,1.0]
[1645919603146,0.67767517,2776.7,2775.8,0.3]
[1645919603347,0.67767517,2776.7,2775.9,1.0]
[1645919603751,0.67767517,2776.8,2775.9,1.0]
[1645919603952,0.67767517,2777.0,2775.9,1.0]
[1645919604352,0.02144628,2776.9,2775.9,1.0]
[1645919604553,0.02144628,2776.9,2776.0,3.5]
[1645919605196,0.97767517,2777.1,2776.0,3.5]
[1645919605398,0.02144639,2777.0,2776.0,3.5]
[1645919605601,5.99828278,2777.2,2776.0,3.5]
[1645919605796,5.34916122,2777.2,2775.9,1.4534]
[1645919606000,5.04916122,2777.2,2775.9,1.4534]
[1645919606197,5.04916122,2777.2,2775.9,1.0]
[1645919606395,5.04379996,2777.2,2775.9,1.0]
[1645919607000,5.04379996,2777.2,2776.0,3.5]
[1645919607506,4.68349996,2777.2,2776.0,4.02]
[1645919607701,4.68349996,2777.2,2776.0,18.59094]
[1645919607702,0.13819996,2777.2,2776.0,18.59094]
[1645919607904,0.1439,2777.6,2776.5,0.00536279]
[1645919607905,0.00536148,2777.1,2776.5,0.00536279]
[1645919608104,0.00536148,2777.1,2776.5,0.52536279]
[1645919608859,1.05013515,2777.7,2776.6,3.5]
[1645919609160,0.00536166,2777.1,2776.7,1.00536258]
[1645919609359,0.00536166,2777.1,2776.8,4.02]
[1645919609760,0.00536166,2777.1,2776.8,5.02]
[1645919609960,0.9101825,2778.0,2776.9,1.0]
[1645919610164,0.0053618,2777.1,2777.0,4.02]
[1645919610357,0.0053618,2777.1,2777.0,1.52]
[1645919610759,0.0053618,2777.1,2777.0,0.52]
[1645919611269,0.36424735,2778.0,2776.9,2.0]
[1645919611459,0.00535813,2777.2,2776.9,1.0]
[1645919612497,0.00394735,2778.0,2776.9,1.0]
[1645919612701,0.00535813,2777.2,2776.9,1.0]
[1645919613598,0.00394735,2778.0,2776.9,1.0]
[1645919613803,0.00535813,2777.2,2776.9,1.0]
[1645919614808,0.3603,2777.9,2776.7,2.9389]
[1645919615211,0.00536179,2777.2,2776.8,0.00536248]
[1645919616007,1.26114,2777.3,2776.3,2.4218]
[1645919616008,0.00293278,2776.6,2776.3,2.4218]
[1645919616245,0.00293278,2776.6,2776.3,3.3223284]
[1645919616446,0.00293278,2776.6,2776.3,7.6423284]
[1645919616744,0.00293278,2776.6,2776.3,8.6423284]
[1645919617243,0.00293278,2776.6,2776.5,1.0]
[1645919618447,3.278e-05,2776.6,2776.5,16.33]
[1645919618750,3.278e-05,2776.6,2776.5,27.91023096]
[1645919618949,3.278e-05,2776.6,2776.5,29.30031781]
[1645919619349,3.278e-05,2776.6,2776.5,30.13561866]
[1645919620004,3.278e-05,2776.6,2776.5,29.30031781]
[1645919620205,3.278e-05,2776.6,2776.5,34.30031781]
[1645919620409,3.278e-05,2776.6,2776.5,36.83065236]
[1645919620608,3.278e-05,2776.6,2776.5,37.51011588]
[1645919620806,3.278e-05,2776.6,2776.5,36.83065236]
[1645919621209,3.278e-05,2776.6,2776.5,37.50976931]
[1645919621408,3.278e-05,2776.6,2776.5,31.83065236]
[1645919621610,3.278e-05,2776.6,2776.5,36.83065236]
[1645919622210,3.278e-05,2776.6,2776.5,38.60558735]
[1645919623211,3.278e-05,2776.6,2776.5,38.74958735]
[1645919624251,3.278e-05,2776.6,2776.5,38.07075664]
[1645919624854,3.278e-05,2776.6,2776.5,18.34490568]
[1645919625054,3.278e-05,2776.6,2776.5,29.35490568]
[1645919627795,3.278e-05,2776.6,2776.5,17.68460568]
[1645919627998,3.278e-05,2776.6,2776.5,12.01567883]
[1645919628203,3.278e-05,2776.6,2776.5,10.46690428]
[1645919628397,3.278e-05,2776.6,2776.5,9.46690428]
[1645919629398,3.278e-05,2776.6,2776.5,10.46690428]
[1645919630901,3.278e-05,2776.6,2776.5,9.84174999]
[1645919632352,3.278e-05,2776.6,2776.5,11.36174999]
[1645919632852,3.278e-05,2776.6,2776.5,11.66174999]
[1645919633050,3.278e-05,2776.6,2776.5,12.58554999]
[1645919633250,3.278e-05,2776.6,2776.5,14.2737514]
[1645919633652,3.278e-05,2776.6,2776.5,25.2837514]
[1645919634455,3.278e-05,2776.6,2776.5,25.6440514]
[1645919634655,3.278e-05,2776.6,2776.5,27.07703658]
[1645919634907,3.278e-05,2776.6,2776.5,27.8911114]
[1645919635308,3.278e-05,2776.6,2776.5,34.3951114]
[1645919635707,3.278e-05,2776.6,2776.5,35.76455774]
[1645919635907,3.278e-05,2776.6,2776.5,36.96665774]
[1645919636112,3.278e-05,2776.6,2776.5,36.74345211]
[1645919636908,3.278e-05,2776.6,2776.5,35.92939211]
[1645919637913,3.278e-05,2776.6,2776.5,36.74345211]
[1645919638311,3.278e-05,2776.6,2776.5,36.0646214]
[1645919639869,3.278e-05,2776.6,2776.5,35.92939211]
[1645919641080,0.00538338,2777.1,2776.6,15.51100693]
[1645919641276,0.00394735,2778.2,2777.0,1.0]
[1645919641472,0.3603,2778.1,2777.1,1.09610428]
[1645919641671,2.15943971,2778.3,2777.1,1.09610428]
[1645919641672,0.02152815,2777.8,2777.1,1.09610428]
[1645919641871,0.41115216,2777.7,2777.1,1.09610428]
[1645919642714,0.00538338,2777.5,2777.1,1.09610428]
[1645919643614,1.04008706,2778.2,2777.1,1.09610428]
[1645919643823,0.00538348,2777.4,2777.1,1.09610428]
[1645919644820,0.00394735,2778.0,2777.1,1.09610428]
[1645919645022,0.3603,2777.9,2777.1,1.09610428]
[1645919645223,0.00538353,2777.4,2777.1,1.09610428]
[1645919646153,0.41217002,2777.3,2777.1,1.09610428]
[1645919646362,0.00538353,2777.4,2777.1,1.09610428]
[1645919647356,0.3603,2777.9,2777.1,1.09610428]
[1645919647556,0.00538353,2777.4,2777.1,1.09610428]
[1645919648359,0.00538353,2777.4,2777.1,1.99640428]
[1645919648556,0.00394735,2778.0,2777.2,1.09610428]
[1645919648761,0.00538353,2777.4,2777.2,1.09610428]
[1645919649664,0.00394735,2777.9,2777.2,1.09610428]
[1645919649910,0.00538348,2777.4,2777.2,1.09610428]
[1645919650511,0.41283431,2777.3,2777.2,1.09610428]
[1645919650912,0.41283431,2777.3,2777.2,1.6484132]
[1645919653218,0.41283431,2777.3,2777.2,2.6484132]
[1645919653518,0.67978706,2777.9,2777.2,2.6484132]
[1645919653519,0.00538353,2777.4,2777.2,2.6484132]
[1645919653757,0.41283431,2777.3,2777.2,2.69620892]
[1645919653958,0.41283431,2777.3,2777.2,2.79842004]
[1645919654160,0.41283431,2777.3,2777.2,3.79842004]
[1645919654355,0.41283431,2777.3,2777.2,2.79842004]
[1645919654562,0.41283431,2777.3,2777.2,1.65452004]
[1645919654763,0.00538353,2777.4,2777.2,1.10221112]
[1645919654957,0.00538353,2777.4,2776.8,0.00538462]
[1645919654958,0.41283431,2777.3,2776.8,0.00538462]
[1645919655157,3.5,2777.2,2776.9,1.10231952]
[1645919655356,0.41283431,2777.1,2776.9,1.10231952]
[1645919655557,3.91283431,2777.3,2776.9,1.10231952]
[1645919655761,0.41283431,2777.2,2776.9,1.10231952]
[1645919655957,0.00521287,2777.1,2776.8,1.10753297]
[1645919656158,0.00521287,2777.1,2776.9,1.10231952]
[1645919656356,0.41342759,2777.0,2776.9,1.10231952]
[1645919656558,0.00521287,2777.1,2776.9,1.10231952]
[1645919656761,0.41340542,2777.0,2776.9,1.10231952]
[1645919657158,0.00521287,2777.1,2776.8,1.10753297]
[1645919657432,0.41340542,2777.0,2776.9,1.10231952]
[1645919657628,0.41345104,2777.0,2776.9,1.10231952]